fUSD/lending_fUSD_20250806
["ID","MTS","AMOUNT","RATE_DAILY","PERIOD"]
[377592314,1754448769155,-400.99,0.00037534,14]
[377592315,1754448769164,-400.0,0.00037534,14]
[377592316,1754448769174,-963.31,0.00037534,14]
[377592317,1754448769184,-400.0,0.00037534,14]
[377592318,1754448769193,-798.43,0.00037534,14]
[377592319,1754448769203,-400.0,0.00037534,14]
[377592320,1754448769214,-400.0,0.00037534,14]
[377592321,1754448769223,-825.61,0.00037534,14]
[377592322,1754448769233,-400.0,0.00037534,14]
[377592323,1754448769242,-400.0,0.00037534,14]
[377592324,1754448769251,-1955.89,0.00037534,14]
[377592325,1754448769261,-400.0,0.00037534,14]
[377592326,1754448769271,-425.14,0.00037534,14]
[377592327,1754448769281,-872.75,0.00037534,14]
[377592328,1754448769290,-672.46,0.00037534,14]
[377592329,1754448769299,-666.07,0.00037534,14]
[377592330,1754448769309,-400.0,0.00037534,7]
[377592331,1754448769319,-2048.4,0.00037534,14]
[377592332,1754448769329,-1186.37,0.00037534,14]
[377592333,1754448769339,-1867.25,0.00037534,14]
[377592334,1754448769348,-400.0,0.00037534,14]
[377592335,1754448769358,-400.0,0.00037534,14]
[377592336,1754448769368,-400.0,0.00037534,14]
[377592337,1754448769378,-400.0,0.00037534,14]
[377592338,1754448769388,-1486.37,0.00037534,14]
[377592339,1754448769398,-1282.75,0.00037534,14]
[377592340,1754448769408,-400.0,0.00037534,14]
[377592341,1754448769418,-620.41,0.00037534,14]
[377592342,1754448769428,-426.54,0.00037534,14]
[377592343,1754448769437,-1685.19,0.00037534,14]
[377592344,1754448769447,-546.47,0.00037534,14]
[377592345,1754448769457,-400.0,0.00037534,14]
[377592346,1754448769466,-1042.07,0.00037534,14]
[377592347,1754448769476,-607.47,0.00037534,14]
[377592348,1754448769485,-400.0,0.00037534,14]
[377592349,1754448769495,-1387.34,0.00037534,14]
[377592350,1754448769505,-1608.62,0.00037534,14]
[377592351,1754448769515,-640.46,0.00037534,14]
[377592352,1754448769526,-1266.36,0.00037534,14]
[377592353,1754448769536,-400.0,0.00037534,14]
[377592354,1754448769546,-1198.83,0.00037534,14]
[377592355,1754448769556,-850.06,0.00037534,14]
[377592356,1754448769566,-1040.96,0.00037534,14]
[377592357,1754448769575,-400.0,0.00037534,14]
[377592358,1754448769585,-400.0,0.00037534,14]
[377592359,1754448769595,-2213.68,0.00037534,14]
[377592360,1754448769604,-627.73,0.00037534,14]
[377592361,1754448769614,-400.0,0.00037534,14]
[377592362,1754448769624,-400.0,0.00037534,14]
[377592363,1754448769633,-471.56,0.00037534,14]
[377592364,1754448769642,-400.0,0.00037534,14]
[377592365,1754448769652,-400.0,0.00037534,14]
[377592366,1754448769661,-511.19,0.00037534,14]
[377592367,1754448769671,-400.0,0.00037534,14]
[377592368,1754448769680,-400.0,0.00037534,14]
[377592369,1754448769690,-400.0,0.00037534,14]
[377592370,1754448769699,-440.85,0.00037534,14]
[377592371,1754448769709,-860.58,0.00037534,14]
[377592372,1754448769719,-1113.65,0.00037534,14]
[377592373,1754448769728,-400.0,0.00037534,14]
[377592374,1754448769738,-400.0,0.00037534,14]
[377592375,1754448769748,-985.67,0.00037534,14]
[377592376,1754448769758,-400.0,0.00037534,14]
[377592377,1754448769767,-523.26,0.00037534,14]
[377592378,1754448769777,-400.0,0.00037534,14]
[377592379,1754448769786,-531.05,0.00037534,14]
[377592380,1754448769796,-400.0,0.00037534,14]
[377592381,1754448769805,-1788.17,0.00037534,14]
[377592382,1754448769816,-400.0,0.00037534,14]
[377592383,1754448769826,-1913.41,0.00037534,14]
[377592384,1754448769835,-1243.8,0.00037534,14]
[377592385,1754448769845,-400.0,0.00037534,14]
[377592386,1754448769854,-400.0,0.00037534,14]
[377592387,1754448769869,-2195.18,0.00037534,14]
[377592388,1754448769881,-400.0,0.00037534,14]
[377592389,1754448769891,-400.0,0.00037534,14]
[377592390,1754448769901,-973.74,0.00037534,14]
[377592391,1754448769911,-400.0,0.00037534,14]
[377592392,1754448769921,-400.0,0.00037534,14]
[377592393,1754448769931,-400.0,0.00037534,14]
[377592394,1754448769941,-511.74,0.00037534,14]
[377592395,1754448769952,-1237.93,0.00037534,14]
[377592396,1754448769963,-1421.29,0.00037534,14]
[377592397,1754448769974,-1927.1,0.00037534,14]
[377592398,1754448769984,-880.55,0.00037534,14]
[377592399,1754448769994,-1559.95,0.00037534,14]
[377592400,1754448770004,-384.36003982,0.00037534,14]
[377592401,1754448770014,-400.0,0.00037534,14]
[377592402,1754448770024,-764.11,0.00037534,14]
[377592403,1754448770034,-832.23,0.00037534,14]
[377592404,1754448770044,-400.0,0.00037534,14]
[377592405,1754448770053,-1200.18,0.00037534,14]
[377592406,1754448770063,-982.62,0.00037534,14]
[377592407,1754448770073,-851.23,0.00037534,14]
[377592408,1754448770086,-483.16,0.00037534,14]
[377592409,1754448770095,-1009.21,0.00037534,14]
[377592410,1754448770107,-400.0,0.00037534,14]
[377592411,1754448770117,-400.0,0.00037534,14]
[377592412,1754448770126,-1056.91,0.00037534,14]
[377592413,1754448770136,-454.78,0.00037534,14]
[377592414,1754448770147,-1461.35,0.00037534,14]
[377592415,1754448770157,-400.0,0.00037534,14]
[377592416,1754448770166,-519.19,0.00037534,14]
[377592417,1754448770176,-1050.13,0.00037534,14]
[377592418,1754448770187,-1907.53,0.00037534,14]
[377592419,1754448770197,-1615.6,0.00037534,14]
[377592420,1754448770207,-400.0,0.00037534,14]
[377592421,1754448770217,-400.0,0.00037534,14]
[377592422,1754448770227,-1550.81,0.00037534,14]
[377592423,1754448770237,-221.44987722,0.00037534,14]
[377592424,1754448770247,-400.0,0.00037534,14]
[377592425,1754448770256,-1830.1,0.00037534,14]
[377592426,1754448770266,-400.0,0.00037534,14]
[377592427,1754448770276,-400.0,0.00037534,14]
[377592428,1754448770286,-802.15,0.00037534,14]
[377592429,1754448770296,-1088.04,0.00037534,14]
[377592430,1754448770306,-417.37,0.00037534,14]
[377592431,1754448770315,-400.0,0.00037534,14]
[377592432,1754448770325,-1532.37,0.00037534,14]
[377592433,1754448770335,-3675.96,0.00037534,14]
[377592434,1754448770344,-498.81,0.00037534,14]
[377592435,1754448770354,-675.67,0.00037534,14]
[377592436,1754448770364,-1930.27,0.00037534,14]
[377592437,1754448770375,-477.88,0.00037534,14]
[377592438,1754448770387,-400.0,0.00037534,14]
[377592439,1754448770397,-400.0,0.00037534,14]
[377592440,1754448770408,-400.0,0.00037534,14]
[377592441,1754448770420,-1895.26,0.00037534,14]
[377592442,1754448770431,-403.43023176,0.00037534,14]
[377592443,1754448770441,-2398.75,0.00037534,14]
[377592444,1754448770451,-693.8,0.00037534,14]
[377592445,1754448770460,-1056.68,0.00037534,14]
[377592446,1754448770470,-400.0,0.00037534,14]
[377592447,1754448770480,-400.0,0.00037534,14]
[377592448,1754448770489,-694.7,0.00037534,14]
[377592449,1754448770499,-400.0,0.00037534,14]
[377592450,1754448770509,-1000.88,0.00037534,14]
[377592451,1754448770519,-400.0,0.00037534,14]
[377592452,1754448770528,-400.0,0.00037534,14]
[377592453,1754448770538,-400.0,0.00037534,14]
[377592454,1754448770547,-1087.98,0.00037534,14]
[377592455,1754448770557,-1317.27,0.00037534,14]
[377592456,1754448770566,-660.48,0.00037534,14]
[377592457,1754448770575,-432.07,0.00037534,14]
[377592458,1754448770584,-1841.73,0.00037534,14]
[377592459,1754448770594,-400.0,0.00037534,14]
[377592460,1754448770604,-400.0,0.00037534,14]
[377592461,1754448770614,-1706.66,0.00037534,14]
[377592462,1754448770623,-400.0,0.00037534,14]
[377592463,1754448770633,-2115.6,0.00037534,14]
[377592464,1754448770642,-2048.1,0.00037534,14]
[377592465,1754448770654,-400.0,0.00037534,14]
[377592466,1754448770663,-890.38,0.00037534,14]
[377592467,1754448770674,-400.0,0.00037534,14]
[377592468,1754448770685,-763.76,0.00037534,14]
[377592469,1754448770696,-400.0,0.00037534,14]
[377592470,1754448770709,-400.0,0.00037534,14]
[377592471,1754448770719,-400.0,0.00037534,14]
[377592472,1754448770729,-554.46,0.00037534,14]
[377592473,1754448770738,-1978.5,0.00037534,14]
[377592474,1754448770747,-3061.86,0.00037534,14]
[377592475,1754448770757,-572.41,0.00037534,14]
[377592476,1754448770766,-1869.25,0.00037534,14]
[377592477,1754448770776,-1241.1,0.00037534,14]
[377592478,1754448770785,-400.0,0.00037534,14]
[377592479,1754448770795,-1742.73,0.00037534,14]
[377592480,1754448770805,-400.0,0.00037534,14]
[377592481,1754448770814,-589.98,0.00037534,14]
[377592482,1754448770823,-1056.28,0.00037534,14]
[377592483,1754448770832,-1789.45,0.00037534,14]
[377592484,1754448770843,-400.0,0.00037534,14]
[377592485,1754448770853,-3264.35,0.00037534,14]
[377592486,1754448770862,-400.0,0.00037534,14]
[377592487,1754448770872,-1465.39,0.00037534,14]
[377592488,1754448770883,-719.58,0.00037534,14]
[377592489,1754448770893,-1335.74,0.00037534,14]
[377592490,1754448770902,-400.0,0.00037534,14]
[377592491,1754448770911,-1301.62,0.00037534,14]
[377592492,1754448770921,-269.46077132,0.00037534,14]
[377592493,1754448770931,-493.26,0.00037534,14]
[377592494,1754448770941,-1906.92,0.00037534,14]
[377592495,1754448770950,-400.0,0.00037534,14]
[377592496,1754448770960,-2206.71,0.00037534,14]
[377592497,1754448770972,-400.0,0.00037534,14]
[377592498,1754448770981,-451.74,0.00037534,14]
[377592499,1754448770990,-400.0,0.00037534,14]
[377592500,1754448771000,-400.0,0.00037534,14]
[377592501,1754448771010,-400.0,0.00037534,14]
[377592502,1754448771020,-400.0,0.00037534,14]
[377592503,1754448771029,-986.68,0.00037534,14]
[377592504,1754448771039,-1276.43,0.00037534,14]
[377592505,1754448771051,-947.42,0.00037534,14]
[377592506,1754448771073,-922.85,0.00037534,14]
[377592507,1754448771093,-400.0,0.00037534,14]
[377592508,1754448771102,-2195.08,0.00037534,14]
[377592509,1754448771111,-1464.57,0.00037534,14]
[377592510,1754448771121,-2197.84,0.00037534,14]
[377592511,1754448771131,-804.15,0.00037534,14]
[377592512,1754448771142,-802.3,0.00037534,14]
[377592513,1754448771151,-400.0,0.00037534,14]
[377592514,1754448771160,-400.0,0.00037534,14]
[377592515,1754448771170,-820.58,0.00037534,14]
[377592516,1754448771179,-400.0,0.00037534,14]
[377592517,1754448771188,-400.0,0.00037534,14]
[377592518,1754448771197,-684.16,0.00037534,14]
[377592519,1754448771206,-611.45,0.00037534,14]
[377592520,1754448771216,-744.31,0.00037534,14]
[377592521,1754448771225,-1536.69,0.00037534,14]
[377592522,1754448771234,-2158.92,0.00037534,14]
[377592523,1754448771243,-400.0,0.00037534,14]
[377592524,1754448771252,-461.52,0.00037534,14]
[377592525,1754448771262,-400.0,0.00037534,14]
[377592526,1754448771271,-400.0,0.00037534,14]
[377592527,1754448771280,-400.0,0.00037534,14]
[377592528,1754448771289,-545.58,0.00037534,14]
[377592529,1754448771298,-850.08,0.00037534,14]
[377592530,1754448771307,-1521.24,0.00037534,14]
[377592531,1754448771317,-300.0,0.00037534,14]
[377592532,1754448771326,-521.67,0.00037534,14]
[377592533,1754448771336,-400.0,0.00037534,14]
[377592534,1754448771346,-2094.08,0.00037534,14]
[377592535,1754448771355,-1086.81,0.00037534,14]
[377592536,1754448771364,-1148.89,0.00037534,14]
[377592537,1754448771374,-400.0,0.00037534,14]
[377592538,1754448771383,-647.61,0.00037534,14]
[377592539,1754448771392,-1804.32,0.00037534,14]
[377592540,1754448771402,-688.12,0.00037534,14]
[377592541,1754448771411,-575.0,0.00037534,14]
[377592542,1754448771420,-460.78,0.00037534,14]
[377592543,1754448771429,-400.0,0.00037534,14]
[377592544,1754448771439,-1509.88,0.00037534,14]
[377592545,1754448771448,-400.0,0.00037534,14]
[377592546,1754448771458,-400.0,0.00037534,14]
[377592547,1754448771467,-400.0,0.00037534,14]
[377592548,1754448771476,-1836.14,0.00037534,14]
[377592549,1754448771485,-400.0,0.00037534,14]
[377592550,1754448771494,-449.13,0.00037534,14]
[377592551,1754448771503,-1622.09,0.00037534,14]
[377592552,1754448771672,-400.0,0.00037534,14]
[377592553,1754448771682,-2961.28,0.00037534,14]
[377592554,1754448771691,-1032.0,0.00037534,14]
[377592555,1754448771700,-878.8,0.00037534,14]
[377592556,1754448771709,-2880.34,0.00037534,14]
[377592557,1754448771718,-1829.37,0.00037534,14]
[377592558,1754448771727,-1462.8,0.00037534,14]
[377592559,1754448771736,-3418.23,0.00037534,14]
[377592560,1754448771745,-1158.06,0.00037534,14]
[377592561,1754448771755,-400.0,0.00037534,14]
[377592562,1754448771764,-400.0,0.00037534,14]
[377592563,1754448771773,-1563.04,0.00037534,14]
[377592564,1754448771782,-774.95,0.00037534,14]
[377592565,1754448771791,-400.0,0.00037534,14]
[377592566,1754448771800,-650.36,0.00037534,14]
[377592567,1754448771809,-1923.25,0.00037534,14]
[377592568,1754448771819,-2020.14,0.00037534,14]
[377592569,1754448771829,-2285.89,0.00037534,14]
[377592570,1754448771839,-3412.85,0.00037534,14]
[377592571,1754448771848,-444.68,0.00037534,14]
[377592572,1754448771858,-400.0,0.00037534,14]
[377592573,1754448771868,-400.0,0.00037534,14]
[377592574,1754448771881,-400.0,0.00037534,14]
[377592575,1754448771890,-400.0,0.00037534,14]
[377592576,1754448771900,-1704.34,0.00037534,14]
[377592577,1754448771910,-400.0,0.00037534,14]
[377592578,1754448771920,-981.32,0.00037534,14]
[377592579,1754448771930,-422.51,0.00037534,14]
[377592580,1754448771939,-1217.8,0.00037534,14]
[377592581,1754448771948,-400.0,0.00037534,14]
[377592582,1754448771957,-719.56,0.00037534,14]
[377592583,1754448771967,-426.16,0.00037534,14]
[377592584,1754448771976,-400.0,0.00037534,14]
[377592585,1754448771985,-2284.92,0.00037534,14]
[377592586,1754448771994,-2049.87,0.00037534,14]
[377592587,1754448772002,-400.0,0.00037534,14]
[377592588,1754448772011,-400.0,0.00037534,14]
[377592589,1754448772020,-400.0,0.00037534,14]
[377592590,1754448772029,-400.0,0.00037534,14]
[377592591,1754448772038,-1324.35,0.00037534,14]
[377592592,1754448772047,-400.0,0.00037534,14]
[377592593,1754448772056,-400.0,0.00037534,14]
[377592594,1754448772065,-536.81,0.00037534,14]
[377592595,1754448772075,-1978.73,0.00037534,14]
[377592596,1754448772084,-2066.75,0.00037534,14]
[377592597,1754448772094,-400.0,0.00037534,14]
[377592598,1754448772103,-400.0,0.00037534,14]
[377592599,1754448772112,-400.0,0.00037534,14]
[377592600,1754448772121,-2370.33,0.00037534,14]
[377592601,1754448772129,-400.0,0.00037534,14]
[377592602,1754448772139,-618.59,0.00037534,14]
[377592603,1754448772149,-400.0,0.00037534,14]
[377592604,1754448772158,-400.0,0.00037534,14]
[377592605,1754448772166,-1380.46,0.00037534,14]
[377592606,1754448772176,-1918.49,0.00037534,14]
[377592607,1754448772184,-400.0,0.00037534,14]
[377592608,1754448772194,-681.38,0.00037534,14]
[377592609,1754448772203,-898.87,0.00037534,14]
[377592610,1754448772211,-1159.52,0.00037534,14]
[377592611,1754448772220,-589.89,0.00037534,14]
[377592612,1754448772229,-2526.57,0.00037534,14]
[377592613,1754448772238,-400.0,0.00037534,14]
[377592614,1754448772247,-226.75988385,0.00037534,14]
[377592615,1754448772256,-400.0,0.00037534,14]
[377592616,1754448772265,-481.3,0.00037534,14]
[377592617,1754448772276,-272.30792379,0.00037534,14]
[377592618,1754448772286,-1943.34,0.00037534,14]
[377592619,1754448772295,-771.1,0.00037534,14]
[377592620,1754448772304,-738.49,0.00037534,14]
[377592621,1754448772313,-1101.66,0.00037534,14]
[377592622,1754448772322,-2119.77,0.00037534,14]
[377592623,1754448772330,-400.0,0.00037534,14]
[377592624,1754448772341,-210.05,0.00037534,14]
[377592625,1754448772350,-400.0,0.00037534,14]
[377592626,1754448772359,-400.0,0.00037534,14]
[377592627,1754448772368,-2486.07,0.00037534,14]
[377592628,1754448772378,-400.0,0.00037534,14]
[377592629,1754448772387,-400.0,0.00037534,14]
[377592630,1754448772396,-400.0,0.00037534,14]
[377592631,1754448772405,-825.89,0.00037534,14]
[377592632,1754448772414,-1301.09,0.00037534,14]
[377592633,1754448772423,-400.0,0.00037534,14]
[377592634,1754448772432,-400.0,0.00037534,14]
[377592635,1754448772440,-400.0,0.00037534,14]
[377592636,1754448772450,-400.0,0.00037534,14]
[377592637,1754448772459,-400.0,0.00037534,14]
[377592638,1754448772469,-400.0,0.00037534,14]
[377592639,1754448772478,-681.33,0.00037534,14]
[377592640,1754448772488,-424.16,0.00037534,14]
[377592641,1754448772497,-1940.75,0.00037534,14]
[377592642,1754448772507,-400.0,0.00037534,14]
[377592643,1754448772517,-2332.46,0.00037534,14]
[377592644,1754448772528,-400.0,0.00037534,14]
[377592645,1754448772538,-400.0,0.00037534,14]
[377592646,1754448772547,-1594.04,0.00037534,14]
[377592647,1754448772557,-400.0,0.00037534,14]
[377592648,1754448772566,-1556.67,0.00037534,14]
[377592649,1754448772576,-400.0,0.00037534,14]
[377592650,1754448772585,-2008.42,0.00037534,14]
[377592651,1754448772594,-400.0,0.00037534,14]
[377592652,1754448772603,-803.41,0.00037534,14]
[377592653,1754448772612,-1049.45,0.00037534,14]
[377592654,1754448772621,-2287.11,0.00037534,14]
[377592655,1754448772631,-2094.9,0.00037534,14]
[377592656,1754448772639,-3089.8,0.00037534,14]
[377592657,1754448772649,-204.5,0.00037534,14]
[377592658,1754448772659,-2284.3,0.00037534,14]
[377592659,1754448772668,-1760.6,0.00037534,14]
[377592660,1754448772677,-904.68,0.00037534,14]
[377592661,1754448772686,-590.2,0.00037534,14]
[377592662,1754448772695,-524.39,0.00037534,14]
[377592663,1754448772704,-538.64,0.00037534,14]
[377592664,1754448772713,-400.0,0.00037534,14]
[377592665,1754448772722,-400.0,0.00037534,14]
[377592666,1754448772732,-473.05,0.00037534,14]
[377592667,1754448772741,-477.4,0.00037534,14]
[377592668,1754448772751,-1562.45,0.00037534,14]
[377592669,1754448772761,-992.23,0.00037534,14]
[377592670,1754448772770,-681.47,0.00037534,14]
[377592671,1754448772779,-1343.91,0.00037534,14]
[377592672,1754448772788,-1123.2,0.00037534,14]
[377592673,1754448772797,-400.0,0.00037534,14]
[377592674,1754448772806,-402.35,0.00037534,14]
[377592675,1754448772816,-400.0,0.00037534,14]
[377592676,1754448772825,-400.0,0.00037534,14]
[377592677,1754448772835,-400.0,0.00037534,14]
[377592678,1754448772845,-659.8,0.00037534,14]
[377592679,1754448772856,-905.29,0.00037534,14]
[377592680,1754448772865,-400.0,0.00037534,14]
[377592681,1754448772877,-400.0,0.00037534,14]
[377592682,1754448772887,-833.81,0.00037534,14]
[377592683,1754448772897,-400.0,0.00037534,14]
[377592684,1754448772907,-400.0,0.00037534,14]
[377592685,1754448772916,-1620.39,0.00037534,14]
[377592686,1754448772926,-400.0,0.00037534,14]
[377592687,1754448772935,-1647.26,0.00037534,14]
[377592688,1754448772945,-2673.63,0.00037534,14]
[377592689,1754448772955,-423.93,0.00037534,14]
[377592690,1754448772965,-400.0,0.00037534,14]
[377592691,1754448772974,-3032.43,0.00037534,14]
[377592692,1754448772983,-400.0,0.00037534,14]
[377592693,1754448772993,-2718.79,0.00037534,14]
[377592694,1754448773004,-400.0,0.00037534,14]
[377592695,1754448773013,-652.53,0.00037534,14]
[377592696,1754448773023,-537.68,0.00037534,14]
[377592697,1754448773032,-400.0,0.00037534,14]
[377592698,1754448773041,-1352.85,0.00037534,14]
[377592699,1754448773050,-591.66,0.00037534,14]
[377592700,1754448773059,-1194.25,0.00037534,14]
[377592701,1754448773070,-1325.26,0.00037534,14]
[377592702,1754448773080,-687.17,0.00037534,14]
[377592703,1754448773090,-400.0,0.00037534,14]
[377592704,1754448773100,-400.0,0.00037534,14]
[377592705,1754448773109,-400.0,0.00037534,14]
[377592706,1754448773118,-2118.84,0.00037534,14]
[377592707,1754448773127,-3219.58,0.00037534,14]
[377592708,1754448773136,-2996.94,0.00037534,14]
[377592709,1754448773146,-1193.92,0.00037534,14]
[377592710,1754448773155,-400.0,0.00037534,14]
[377592711,1754448773165,-400.0,0.00037534,14]
[377592712,1754448773174,-400.0,0.00037534,14]
[377592713,1754448773183,-400.0,0.00037534,14]
[377592714,1754448773193,-285.94809717,0.00037534,14]
[377592715,1754448773202,-825.46,0.00037534,14]
[377592716,1754448773211,-400.0,0.00037534,14]
[377592717,1754448773221,-400.0,0.00037534,14]
[377592718,1754448773230,-509.96,0.00037534,14]
[377592719,1754448773239,-2113.04,0.00037534,14]
[377592720,1754448773248,-1273.79,0.00037534,14]
[377592721,1754448773258,-400.0,0.00037534,14]
[377592722,1754448773267,-2100.37,0.00037534,14]
[377592723,1754448773276,-400.0,0.00037534,14]
[377592724,1754448773285,-445.22,0.00037534,14]
[377592725,1754448773295,-400.0,0.00037534,14]
[377592726,1754448773305,-2053.25,0.00037534,14]
[377592727,1754448773314,-1931.44,0.00037534,14]
[377592728,1754448773324,-400.0,0.00037534,14]
[377592729,1754448773333,-400.0,0.00037534,14]
[377592730,1754448773343,-590.55,0.00037534,14]
[377592731,1754448773353,-1620.16,0.00037534,14]
[377592732,1754448773362,-400.0,0.00037534,14]
[377592733,1754448773372,-457.71,0.00037534,14]
[377592734,1754448773382,-2044.76,0.00037534,14]
[377592735,1754448773391,-400.0,0.00037534,14]
[377592736,1754448773401,-400.0,0.00037534,14]
[377592737,1754448773410,-2493.6,0.00037534,14]
[377592738,1754448773419,-1325.52,0.00037534,14]
[377592739,1754448773429,-3399.61,0.00037534,14]
[377592740,1754448773438,-400.0,0.00037534,14]
[377592741,1754448773447,-400.0,0.00037534,14]
[377592742,1754448773457,-486.69,0.00037534,14]
[377592743,1754448773467,-1026.17,0.00037534,14]
[377592744,1754448773475,-400.0,0.00037534,14]
[377592745,1754448773484,-723.29,0.00037534,14]
[377592746,1754448773494,-400.0,0.00037534,14]
[377592747,1754448773503,-651.88,0.00037534,14]
[377592748,1754448773512,-400.0,0.00037534,14]
[377592749,1754448773521,-903.69,0.00037534,14]
[377592750,1754448773530,-1532.92,0.00037534,14]
[377592751,1754448773539,-672.26,0.00037534,14]
[377592752,1754448773549,-400.0,0.00037534,14]
[377592753,1754448773558,-400.0,0.00037534,14]
[377592754,1754448773567,-1382.08,0.00037534,14]
[377592755,1754448773577,-400.0,0.00037534,14]
[377592756,1754448773586,-2614.37,0.00037534,14]
[377592757,1754448773595,-400.0,0.00037534,14]
[377592758,1754448773603,-677.89,0.00037534,14]
[377592759,1754448773613,-1383.95,0.00037534,14]
[377592760,1754448773622,-400.0,0.00037534,14]
[377592761,1754448773631,-400.0,0.00037534,14]
[377592762,1754448773640,-400.0,0.00037534,14]
[377592763,1754448773649,-579.93,0.00037534,14]
[377592764,1754448773659,-832.0,0.00037534,14]
[377592765,1754448773668,-1028.28,0.00037534,14]
[377592766,1754448773677,-400.0,0.00037534,14]
[377592767,1754448773687,-717.13,0.00037534,14]
[377592768,1754448773695,-400.0,0.00037534,14]
[377592769,1754448773704,-400.0,0.00037534,14]
[377592770,1754448773713,-2778.5,0.00037534,14]
[377592771,1754448773723,-1985.89,0.00037534,14]
[377592772,1754448773732,-400.0,0.00037534,14]
[377592773,1754448773741,-400.0,0.00037534,14]
[377592774,1754448773750,-400.0,0.00037534,14]
[377592775,1754448773759,-2015.29,0.00037534,14]
[377592776,1754448773769,-3708.79,0.00037534,14]
[377592777,1754448773778,-752.93,0.00037534,14]
[377592778,1754448773787,-400.0,0.00037534,14]
[377592779,1754448773796,-400.0,0.00037534,14]
[377592780,1754448773805,-735.15,0.00037534,14]
[377592781,1754448773814,-2553.57,0.00037534,14]
[377592782,1754448773824,-400.0,0.00037534,14]
[377592783,1754448773834,-1607.76,0.00037534,14]
[377592784,1754448773843,-400.0,0.00037534,14]
[377592785,1754448773853,-400.0,0.00037534,14]
[377592786,1754448773862,-757.96,0.00037534,14]
[377592787,1754448773874,-1838.27,0.00037534,14]
[377592788,1754448773895,-2459.31,0.00037534,14]
[377592789,1754448773906,-2248.73,0.00037534,14]
[377592790,1754448773916,-400.0,0.00037534,14]
[377592791,1754448773926,-865.96,0.00037534,14]
[377592792,1754448773936,-842.75,0.00037534,14]
[377592793,1754448773946,-1094.22,0.00037534,14]
[377592794,1754448773955,-2023.14,0.00037534,14]
[377592795,1754448773966,-1141.46,0.00037534,14]
[377592796,1754448773975,-400.0,0.00037534,14]
[377592797,1754448773984,-1074.3,0.00037534,14]
[377592798,1754448773993,-1520.4,0.00037534,14]
[377592799,1754448774003,-414.57,0.00037534,14]
[377592800,1754448774012,-1903.84,0.00037534,14]
[377592801,1754448774021,-400.0,0.00037534,14]
[377592802,1754448774030,-715.12,0.00037534,14]
[377592803,1754448774040,-400.0,0.00037534,14]
[377592804,1754448774050,-1769.99,0.00037534,14]
[377592805,1754448774059,-3013.96,0.00037534,14]
[377592806,1754448774068,-450.72,0.00037534,14]
[377592807,1754448774078,-1189.15,0.00037534,14]
[377592808,1754448774088,-400.0,0.00037534,14]
[377592809,1754448774097,-1853.29,0.00037534,14]
[377592810,1754448774107,-414.44,0.00037534,14]
[377592811,1754448774116,-2171.13,0.00037534,14]
[377592812,1754448774126,-492.36,0.00037534,14]
[377592813,1754448774135,-1432.94,0.00037534,14]